fUSD/lending_fUSD_20251120
["ID","MTS","AMOUNT","RATE_DAILY","PERIOD"]
[394497357,1763633441058,-500.0,0.0001952,2]
[394497358,1763633441068,-500.0,0.0001952,2]
[394497359,1763633441077,-500.0,0.0001952,2]
[394497360,1763633441087,-6526.8,0.00019587,2]
[394497361,1763633441097,-17385.55,0.00019588,2]
[394497362,1763633441107,-503.08797881,0.00019633,2]
[394497363,1763633441116,-920.0,0.00019692,2]
[394497364,1763633441127,-219.24783768,0.00019713,2]
[394497365,1763633441139,-915.09,0.00019744,2]
[394497366,1763633441151,-1319.0,0.00019813,2]
[394497367,1763633441161,-575.0,0.00019813,2]
[394497368,1763633441171,-609.0,0.00019813,2]
[394497369,1763633441182,-822.0,0.00019813,2]
[394497370,1763633441193,-1600.0,0.00019813,2]
[394497371,1763633441203,-794.0,0.00019813,2]
[394497372,1763633441213,-1256.0,0.00019813,2]
[394497373,1763633441222,-907.0,0.00019833,2]
[394497374,1763633441232,-1220.186,0.00019833,2]
[394497375,1763633441242,-705.0,0.00019833,2]
[394497376,1763633441253,-561.0,0.00019833,2]
[394497377,1763633441263,-1605.0,0.00019833,2]
[394497378,1763633441273,-150.0,0.00020011,2]
[394497379,1763633441282,-150.0,0.00020011,2]
[394497380,1763633441292,-251.483,0.00020011,2]
[394497381,1763633441301,-150.0,0.00020011,2]
[394497382,1763633441311,-3434.0,0.00020011,2]
[394497383,1763633441321,-800.43,0.00020116,2]
[394497384,1763633441331,-1453.79006487,0.00020187,2]
[394497385,1763633441340,-170.55,0.00020387,2]
[394497386,1763633441350,-472.7681954,0.00020472,2]
[394497387,1763633441359,-150.0,0.00020611,2]
[394497388,1763633441369,-800.43,0.00020795,2]
[394497389,1763633441379,-166.66,0.00020831,2]
[394497390,1763633441388,-300.0,0.00020957,2]
[394497391,1763633441398,-766.85186527,0.00021096,2]
[394497392,1763633441408,-509.1770438,0.00021377,2]
[394497393,1763633441427,-166.66,0.00021519,2]
[394497394,1763633441436,-3174.79,0.00021697,2]
[394497395,1763633441446,-166.66,0.00022206,2]
[394497396,1763633441456,-300.0,0.00022327,2]
[394497397,1763633441466,-472.7681954,0.00022694,2]
[394497398,1763633441475,-160.02,0.00022713,2]
[394497399,1763633441485,-795.955,0.00022813,2]
[394497400,1763633441494,-794.0,0.00022813,2]
[394497401,1763633441504,-672.356,0.00022813,2]
[394497402,1763633441513,-907.0,0.00022833,2]
[394497403,1763633441522,-1191.0,0.00022833,2]
[394497404,1763633441532,-561.0,0.00022833,2]
[394497405,1763633441543,-166.66,0.00022894,2]
[394497406,1763633441553,-500.0,0.000229,2]
[394497407,1763633441563,-1453.79006487,0.000229,2]
[394497408,1763633441573,-1069.75936647,0.00023224,10]
[394497409,1763633441582,-2000.0,0.000233,2]
[394497410,1763633441592,-166.93654516,0.00023545,2]
[394497411,1763633441601,-162.95436659,0.00023573,2]
[394497412,1763633441610,-166.66,0.00023581,2]
[394497414,1763633441620,-150.0,0.00023611,2]
[394497415,1763633441629,-509.1770438,0.00024001,2]
[394497416,1763633441639,-175.0,0.000241,2]
[394497417,1763633441648,-166.66,0.00024269,2]
[394497418,1763633441657,-1000.0,0.00024546,2]
[394497419,1763633441667,-33346.6032,0.00024646,2]
[394497420,1763633441676,-500.0,0.00024673,2]
[394497421,1763633441686,-500.0,0.00024673,2]
[394497422,1763633441695,-500.0,0.00024673,2]
[394497423,1763633441705,-500.0,0.00024673,2]
[394497424,1763633441715,-766.85186527,0.00024719,2]
[394497425,1763633441725,-186.9559386,0.0002479,2]
[394497426,1763633441734,-396034.974708,0.000248,3]
[394497427,1763633441744,-3870.0,0.00024819,2]
[394497428,1763633441754,-88007.7721574,0.0002489,3]
[394497429,1763633441763,-1100.0,0.000249,9]
[394497430,1763633441917,-367644.715095,0.000249,3]
[394497431,1763633441927,-150.0,0.00025,2]
[394497432,1763633441934,-150.0,0.00025,2]
[394497433,1763633441942,-150.0,0.00025,2]
[394497434,1763633441949,-150.0,0.00025,2]
[394497435,1763633441956,-150.0,0.00025,2]
[394497436,1763633441964,-150.0,0.00025,2]
[394497437,1763633441971,-244.876,0.00025,2]
[394497438,1763633441978,-479.55759781,0.00025396,2]
[394497439,1763633441985,-1453.79006487,0.00025614,2]
[394497440,1763633441992,-907.0,0.00025833,2]
[394497441,1763633441998,-1191.0,0.00025833,2]
[394497442,1763633442006,-521.349,0.00025833,2]
[394497443,1763633442013,-2000.0,0.00027,2]
[394497444,1763633442022,-1966.59,0.00027723,2]
[394497445,1763633442031,-394.18,0.000278,7]
[394497446,1763633442041,-207.25,0.000278,7]
[394497447,1763633442050,-1453.79006487,0.00028328,2]
[394497448,1763633442058,-907.0,0.00028833,2]
[394497449,1763633442067,-1191.0,0.00028833,2]
[394497450,1763633442075,-166.93654516,0.00029662,2]
[394497451,1763633442084,-728.67789415,0.0002971,2]
[394497452,1763633442093,-305.81133977,0.00029999,2]
[394497453,1763633442102,-500.0,0.00029999,2]
[394497454,1763633442109,-500.0,0.00029999,2]
[394497455,1763633442117,-500.0,0.00029999,2]
[394497456,1763633442127,-561.47856007,0.00029999,2]
[394497457,1763633442142,-500.0,0.00029999,2]
[394497458,1763633442152,-500.0,0.00029999,2]
[394497459,1763633442162,-500.0,0.00029999,2]
[394497460,1763633442171,-349.95998215,0.00029999,2]
[394497461,1763633442182,-213.5597928,0.00029999,2]
[394497462,1763633442192,-500.0,0.00029999,2]
[394497463,1763633442201,-400.0,0.00029999,2]
[394497464,1763633442211,-170.55,0.00030231,2]
[394497465,1763633442221,-19349.7218471,0.0003069,3]
[394497466,1763633442230,-2000.0,0.000307,2]
[394497467,1763633442239,-1453.79006487,0.00031041,2]
[394497468,1763633442249,-240.87287161,0.00031352,2]
[394497469,1763633442259,-217.06,0.0003145,14]
[394497470,1763633442268,-907.0,0.00031833,2]
[394497471,1763633442278,-1191.0,0.00031833,2]
[394497472,1763633442287,-207.25,0.000323,30]
[394497473,1763633442298,-500.0,0.00032466,2]
[394497474,1763633442308,-210.0,0.0003286,30]
[394497475,1763633442317,-188.48294184,0.00032877,7]
[394497476,1763633442326,-152.0,0.00033635,3]
[394497477,1763633442336,-1453.79006487,0.00033755,2]
[394497478,1763633442345,-19349.7218471,0.00033761,3]
[394497479,1763633442355,-1000.0,0.00033771,2]
[394497480,1763633442364,-479.99,0.00033771,2]
[394497481,1763633442374,-37543.69,0.00033771,2]
[394497482,1763633442383,-394.18,0.000338,14]
[394497483,1763633442393,-1600.0,0.000339,12]
[394497484,1763633442403,-19349.7218471,0.0003439,3]
[394497485,1763633442413,-2000.0,0.000344,2]
[394497486,1763633442422,-907.0,0.00034833,2]
[394497487,1763633442431,-210.0,0.0003488,30]
[394497488,1763633442440,-152.0,0.00035268,4]
[394497489,1763633442450,-150.0,0.00035433,7]
[394497490,1763633442459,-872.49,0.00035653,5]
[394497491,1763633442469,-2751.0,0.00035654,120]
[394497492,1763633442479,-166.93654516,0.00035778,2]
[394497493,1763633442490,-170.55,0.00035815,2]
[394497494,1763633442500,-207.25,0.000359,30]
[394497495,1763633442509,-1018.28,0.00036,2]
[394497496,1763633442519,-1453.79006487,0.00036469,2]
[394497497,1763633442529,-1018.28,0.0003672,2]
[394497498,1763633442539,-210.0,0.0003689,30]
[394497499,1763633442548,-232.0,0.000369,120]
[394497500,1763633442558,-152.0,0.00036902,5]
[394497501,1763633442568,-500.0,0.00036973,5]
[394497502,1763633442578,-19349.7218471,0.00036976,4]
[394497503,1763633442589,-500.0,0.00036986,15]
[394497504,1763633442599,-500.0,0.00036986,15]
[394497505,1763633442608,-500.0,0.00036986,15]
[394497506,1763633442618,-464.31294415,0.00036986,15]
[394497507,1763633442627,-500.0,0.00036986,15]
[394497508,1763633442637,-500.0,0.00036986,15]
[394497509,1763633442647,-500.0,0.00036986,15]
[394497510,1763633442657,-500.0,0.00036986,15]
[394497511,1763633442667,-500.0,0.00036986,15]
[394497512,1763633442677,-500.0,0.00036986,15]
[394497513,1763633442687,-500.0,0.00036986,15]
[394497514,1763633442697,-500.0,0.00036986,15]
[394497515,1763633442707,-500.0,0.00036986,15]
[394497516,1763633442717,-500.0,0.00036986,15]
[394497517,1763633442727,-500.0,0.00036986,15]
[394497518,1763633442737,-500.0,0.00036986,15]
[394497519,1763633442747,-500.0,0.00036986,15]
[394497520,1763633442757,-394.18,0.00037,14]
[394497521,1763633442766,-1018.28,0.0003744,2]
[394497522,1763633442776,-150.0,0.00037775,4]
[394497523,1763633442785,-150.0,0.00037775,4]
[394497524,1763633442795,-150.0,0.00037775,4]
[394497525,1763633442805,-150.0,0.00037775,4]
[394497526,1763633442815,-150.0,0.00037775,4]
[394497527,1763633442824,-152.09254433,0.00037775,4]
[394497528,1763633442834,-150.0,0.00037775,4]
[394497530,1763633442844,-150.0,0.00037775,4]
[394497531,1763633442853,-153.6380904,0.00037775,4]
[394497532,1763633442863,-150.0,0.00037775,4]
[394497533,1763633442872,-150.0,0.00037775,4]
[394497534,1763633442881,-150.0,0.00037775,4]
[394497535,1763633442890,-500.0,0.00037798,30]
[394497536,1763633442900,-500.0,0.00037798,30]
[394497538,1763633442909,-907.0,0.00037833,2]
[394497539,1763633442919,-2000.0,0.00038,2]
[394497541,1763633442929,-207.25,0.00038,30]
[394497542,1763633442938,-926.54450684,0.00038061,5]
[394497543,1763633442948,-2000.0,0.000381,2]
[394497544,1763633442957,-1018.28,0.0003816,2]
[394497545,1763633442967,-152.0,0.00038535,6]
[394497546,1763633442976,-900.0,0.000387,2]
[394497547,1763633442985,-900.0,0.000387,2]
[394497548,1763633442994,-218.32902688,0.00038752,2]
[394497549,1763633443003,-150.0,0.00038825,7]
[394497550,1763633443013,-1018.28,0.0003888,2]
[394497551,1763633443022,-1853.7484,0.00038888,30]
[394497552,1763633443032,-210.0,0.0003891,30]
[394497553,1763633443042,-1966.59,0.00039008,2]
[394497554,1763633443052,-218.32902688,0.00039047,2]
[394497555,1763633443061,-394.18,0.000391,14]
[394497556,1763633443071,-150.0,0.00039174,7]
[394497557,1763633443080,-150.0,0.00039174,7]
[394497558,1763633443090,-1453.79006487,0.00039182,2]
[394497559,1763633443099,-218.32902688,0.00039253,2]
[394497560,1763633443109,-218.32902688,0.00039502,2]
[394497561,1763633443118,-1018.28,0.000396,30]
[394497562,1763633443128,-150.0,0.00039874,7]
[394497563,1763633443138,-150.0,0.00039874,7]
[394497564,1763633443147,-150.0,0.00039874,7]
[394497565,1763633443161,-218.32902688,0.00039934,2]
[394497566,1763633443170,-260.83,0.0004,30]
[394497567,1763633443180,-218.32902688,0.00040042,2]
[394497568,1763633443190,-152.0,0.00040168,7]
[394497569,1763633443201,-1018.28,0.0004032,120]
[394497570,1763633443210,-19349.7218471,0.00040361,4]
[394497571,1763633443220,-218.32902688,0.00040518,2]
[394497572,1763633443231,-150.0,0.00040521,2]
[394497573,1763633443240,-150.0,0.00040521,2]
[394497574,1763633443250,-416.09,0.00040521,2]
[394497575,1763633443261,-150.0,0.00040521,2]
[394497576,1763633443271,-218.32902688,0.00040559,2]
[394497577,1763633443281,-150.0,0.00040574,7]
[394497578,1763633443291,-150.0,0.00040574,7]
[394497579,1763633443301,-550.68,0.00040594,2]
[394497580,1763633443310,-550.68,0.00040594,2]
[394497581,1763633443320,-436.32,0.00040594,2]
[394497582,1763633443329,-1438.938,0.00040633,58]
[394497583,1763633443339,-686.61,0.00040683,30]
[394497584,1763633443349,-6650.0,0.000407,117]
[394497585,1763633443359,-907.0,0.00040833,2]
[394497586,1763633443368,-955.0,0.00040898,30]
[394497587,1763633443378,-150.0,0.00040923,7]
[394497588,1763633443387,-210.0,0.0004093,30]
[394497589,1763633443397,-300.2018,0.00040937,103]
[394497590,1763633443407,-159.80558995,0.00040994,2]
[394497591,1763633443416,-204.01175789,0.00040995,13]
[394497592,1763633443425,-204.01175787,0.00040995,13]
[394497593,1763633443435,-204.01175787,0.00040995,13]
[394497594,1763633443444,-204.01175787,0.00040995,13]
[394497595,1763633443453,-204.01175787,0.00040995,13]
[394497596,1763633443463,-204.01175787,0.00040995,13]
[394497597,1763633443473,-204.01175787,0.00040995,13]
[394497598,1763633443482,-204.01175787,0.00040995,13]
[394497599,1763633443491,-204.01175787,0.00040995,13]
[394497600,1763633443501,-204.01175787,0.00040995,13]
[394497601,1763633443510,-204.01175787,0.00040995,13]
[394497602,1763633443519,-300.0,0.00040999,10]
[394497603,1763633443529,-166.0,0.00041,90]
[394497604,1763633443539,-164.0,0.00041,90]
[394497605,1763633443549,-218.32902688,0.0004101,2]
[394497606,1763633443558,-1018.28,0.0004104,120]
[394497607,1763633443568,-19349.7218471,0.00041084,4]
[394497608,1763633443577,-300.0,0.00041094,10]
[394497609,1763633443586,-500.0,0.00041094,120]
[394497610,1763633443595,-510.88641036,0.00041094,120]
[394497611,1763633443605,-500.0,0.00041094,120]
[394497612,1763633443620,-580.77374724,0.00041094,120]
[394497613,1763633443640,-160.65737046,0.00041094,120]
[394497614,1763633443653,-500.0,0.00041095,2]
[394497615,1763633443664,-3524.37,0.00041095,2]
[394497616,1763633443675,-500.0,0.00041095,2]
[394497617,1763633443685,-300.0,0.00041095,2]
[394497618,1763633443695,-502.31910354,0.00041095,2]
[394497619,1763633443706,-500.0,0.00041095,2]
[394497620,1763633443715,-854.73,0.00041095,2]
[394497621,1763633443724,-300.0,0.00041095,2]
[394497622,1763633443735,-500.0,0.00041095,2]
[394497623,1763633443744,-1014.0,0.000411,2]
[394497624,1763633443754,-565.74491387,0.000411,2]
[394497625,1763633443763,-218.32902688,0.00041138,2]
[394497626,1763633443773,-159.80558995,0.00041174,2]
[394497627,1763633443782,-157.68004741,0.00041178,2]
[394497628,1763633443791,-285.27774158,0.00041178,2]
[394497629,1763633443801,-500.0,0.00041178,60]
[394497630,1763633443811,-150.0,0.00041178,2]
[394497631,1763633443819,-2200.0,0.000412,15]
[394497632,1763633443829,-500.0,0.00041205,60]
[394497633,1763633443838,-1101.36,0.00041205,30]
[394497634,1763633443848,-500.0,0.00041233,60]
[394497635,1763633443857,-300.0,0.0004124,2]
[394497636,1763633443866,-300.0,0.00041251,2]
[394497637,1763633443876,-500.0,0.0004126,60]
[394497638,1763633443886,-300.0,0.00041282,2]
[394497639,1763633443895,-300.0,0.00041287,2]
[394497640,1763633443904,-500.0,0.00041288,60]
[394497641,1763633443913,-2800.0,0.000413,15]
[394497642,1763633443922,-300.0,0.00041305,2]
[394497643,1763633443931,-197.93985363,0.00041315,60]
[394497644,1763633443941,-300.0,0.00041317,2]
[394497645,1763633443951,-955.0,0.0004132,30]
[394497646,1763633443960,-615.0,0.00041342,120]
[394497647,1763633443969,-300.0,0.00041349,2]
[394497648,1763633443978,-300.0,0.00041352,2]
[394497649,1763633443987,-159.80558995,0.00041355,2]
[394497650,1763633443997,-300.0,0.00041358,2]
[394497651,1763633444007,-500.0,0.00041369,2]
[394497652,1763633444016,-3524.37,0.00041369,2]
[394497653,1763633444026,-500.0,0.00041369,2]
[394497654,1763633444035,-300.0,0.00041369,2]
[394497655,1763633444049,-319.67364616,0.00041369,2]
[394497656,1763633444060,-854.73,0.00041369,2]
[394497657,1763633444072,-300.0,0.00041369,2]
[394497658,1763633444084,-228.29338235,0.00041369,2]
[394497659,1763633444097,-300.0,0.00041374,2]
[394497660,1763633444109,-218.32902688,0.00041375,2]
[394497661,1763633444120,-300.0,0.00041382,2]
[394497662,1763633444133,-19349.7218471,0.00041388,4]
[394497663,1763633444144,-500.0,0.000414,15]
[394497664,1763633444160,-300.0,0.00041403,2]
[394497665,1763633444170,-300.0,0.00041408,2]
[394497666,1763633444180,-300.0,0.0004141,2]
[394497667,1763633444191,-300.0,0.00041412,2]
[394497668,1763633444203,-300.0,0.00041417,2]
[394497669,1763633444214,-300.0,0.00041424,2]
[394497670,1763633444226,-300.0,0.00041432,2]
[394497671,1763633444238,-300.0,0.00041444,2]
[394497672,1763633444250,-300.0,0.00041458,2]
[394497673,1763633444261,-300.0,0.00041461,2]
[394497674,1763633444272,-300.0,0.00041469,2]
[394497675,1763633444284,-300.0,0.00041471,2]
[394497676,1763633444297,-300.0,0.00041476,2]
[394497677,1763633444309,-300.0,0.00041483,2]
[394497678,1763633444322,-300.0,0.00041484,2]
[394497679,1763633444335,-300.0,0.00041491,2]
[394497680,1763633444347,-500.0,0.000415,15]
[394497681,1763633444358,-300.0,0.00041501,2]
[394497682,1763633444369,-170.55,0.00041507,14]
[394497683,1763633444380,-300.0,0.00041513,2]
[394497684,1763633444391,-300.0,0.00041517,2]
[394497685,1763633444401,-300.0,0.00041522,2]
[394497686,1763633444411,-300.0,0.00041529,2]
[394497687,1763633444422,-300.0,0.00041531,2]
[394497688,1763633444432,-159.80558995,0.00041535,2]
[394497689,1763633444441,-300.0,0.0004155,2]
[394497690,1763633444451,-300.0,0.00041551,2]
[394497691,1763633444462,-300.0,0.00041551,2]
[394497692,1763633444473,-300.0,0.00041559,2]
[394497693,1763633444484,-300.0,0.00041564,2]
[394497694,1763633444495,-300.0,0.00041564,2]
[394497695,1763633444506,-300.0,0.00041564,2]
[394497696,1763633444518,-255.68219,0.0004158,9]
[394497697,1763633444529,-300.0,0.00041582,2]
[394497698,1763633444540,-500.0,0.000416,15]
[394497699,1763633444553,-19349.7218471,0.000416,4]
[394497700,1763633444564,-300.0,0.00041609,2]
[394497701,1763633444576,-300.0,0.0004161,2]
[394497702,1763633444586,-19349.7218471,0.0004161,4]
[394497703,1763633444598,-170.55,0.00041614,14]
[394497704,1763633444609,-518.587662,0.00041619,7]
[394497705,1763633444620,-63961.23801992,0.0004162,2]
[394497706,1763633444631,-300.0,0.00041621,2]
[394497707,1763633444643,-19349.7218471,0.00041623,4]
[394497708,1763633444654,-280.08737976,0.00041643,2]
[394497709,1763633444665,-3524.37,0.00041643,2]
[394497710,1763633444675,-500.0,0.00041643,2]
[394497711,1763633444687,-300.0,0.00041643,2]
[394497712,1763633444699,-854.73,0.00041643,2]
[394497713,1763633444710,-300.0,0.00041643,2]
[394497714,1763633444722,-300.0,0.00041645,2]
[394497715,1763633444733,-300.0,0.00041647,2]
[394497716,1763633444744,-300.0,0.00041648,2]
[394497717,1763633444755,-300.0,0.00041652,2]
[394497718,1763633444767,-300.0,0.00041654,2]
[394497719,1763633444777,-300.0,0.00041659,2]
[394497720,1763633444789,-300.0,0.00041661,2]
[394497721,1763633444802,-300.0,0.00041674,2]
[394497722,1763633444813,-300.0,0.00041691,2]
[394497723,1763633444823,-300.0,0.00041694,2]
[394497724,1763633444833,-500.0,0.000417,15]
[394497725,1763633444845,-300.0,0.00041705,2]
[394497726,1763633444856,-159.80558995,0.00041716,2]
[394497727,1763633444866,-300.0,0.00041716,2]
[394497728,1763633444877,-300.0,0.00041717,2]
[394497729,1763633444889,-300.0,0.00041718,2]
[394497730,1763633444900,-300.0,0.00041726,2]
[394497731,1763633444911,-300.0,0.00041729,2]
[394497732,1763633444923,-300.0,0.00041739,2]
[394497733,1763633444935,-300.0,0.00041741,2]
[394497734,1763633444946,-955.0,0.00041742,30]
[394497735,1763633444958,-300.0,0.00041745,2]
[394497736,1763633444969,-300.0,0.00041759,2]
[394497737,1763633444980,-1018.28,0.0004176,120]
[394497738,1763633444992,-255.68219,0.0004176,10]
[394497739,1763633445002,-19349.7218471,0.00041766,4]
[394497740,1763633445013,-300.0,0.00041775,2]
[394497741,1763633445025,-300.0,0.00041777,2]
[394497742,1763633445035,-730.256,0.00041777,2]
[394497743,1763633445045,-300.0,0.00041783,2]
[394497744,1763633445055,-300.0,0.00041788,2]
[394497745,1763633445065,-2000.0,0.000418,2]
[394497746,1763633445076,-1000.0,0.000418,15]
[394497747,1763633445087,-152.0,0.00041801,8]
[394497748,1763633445097,-300.0,0.00041803,2]
[394497749,1763633445107,-300.0,0.0004181,2]
[394497751,1763633445119,-218.32902699,0.00041811,2]
[394497753,1763633445130,-300.0,0.00041834,2]
[394497754,1763633445142,-300.0,0.00041837,2]
[394497755,1763633445155,-300.0,0.00041843,2]
[394497756,1763633445168,-300.0,0.00041847,2]
[394497757,1763633445179,-300.0,0.00041853,2]
[394497758,1763633445189,-300.0,0.00041855,2]
[394497759,1763633445199,-370.70940116,0.00041866,2]
[394497760,1763633445210,-300.0,0.00041873,2]
[394497761,1763633445219,-300.0,0.00041879,2]
[394497762,1763633445230,-300.0,0.00041885,2]
[394497763,1763633445239,-300.0,0.00041888,2]
[394497764,1763633445250,-300.0,0.00041888,2]
[394497765,1763633445260,-300.0,0.00041892,2]
[394497766,1763633445270,-166.93654516,0.00041895,28]
[394497767,1763633445280,-204.01175787,0.00041895,14]
[394497768,1763633445291,-1453.79006487,0.00041896,15]
[394497769,1763633445304,-159.80558995,0.00041896,2]
[394497770,1763633445315,-181.67343781,0.00041896,2]
[394497771,1763633445327,-400.13402315,0.000419,120]
[394497772,1763633445338,-344.62523551,0.000419,120]
[394497773,1763633445350,-571.58015428,0.000419,120]
[394497774,1763633445361,-189.28916149,0.000419,120]
[394497775,1763633445372,-203.63574779,0.000419,120]
[394497776,1763633445383,-217.32483356,0.000419,120]
[394497777,1763633445394,-299.444481,0.000419,120]
[394497778,1763633445404,-300.0,0.00041901,2]
[394497779,1763633445413,-300.0,0.00041902,2]
[394497780,1763633445423,-300.0,0.00041904,2]
[394497781,1763633445433,-300.0,0.00041912,2]
[394497782,1763633445443,-300.0,0.00041916,2]
[394497783,1763633445453,-300.0,0.00041917,2]
[394497784,1763633445463,-3524.37,0.00041917,2]
[394497785,1763633445473,-500.0,0.00041917,2]
[394497786,1763633445482,-300.0,0.00041917,2]
[394497787,1763633445492,-854.73,0.00041917,2]
[394497788,1763633445502,-300.0,0.00041917,2]
[394497789,1763633445512,-300.0,0.00041927,2]
[394497790,1763633445523,-300.0,0.00041927,2]
[394497791,1763633445533,-300.0,0.00041927,2]
[394497792,1763633445544,-300.0,0.00041932,2]
[394497793,1763633445555,-715.5279662,0.00041933,30]
[394497794,1763633445565,-1451.66490753,0.00041933,30]
[394497795,1763633445575,-500.0,0.0004194,30]
[394497796,1763633445586,-500.0,0.0004194,30]
[394497797,1763633445596,-500.0,0.0004194,30]
[394497798,1763633445607,-296.0698838,0.0004194,30]
[394497799,1763633445617,-300.0,0.00041945,2]
[394497800,1763633445628,-300.0,0.00041946,2]
[394497801,1763633445639,-300.0,0.00041948,2]
[394497802,1763633445649,-300.0,0.00041951,2]
[394497803,1763633445660,-300.0,0.00041969,2]
[394497804,1763633445670,-150.00000001,0.00041973,30]
[394497805,1763633445680,-150.0,0.00041973,30]
[394497806,1763633445691,-150.0,0.00041973,30]
[394497807,1763633445701,-150.0,0.00041973,30]
[394497808,1763633445712,-188.58005658,0.00041973,30]
[394497809,1763633445722,-152.95383245,0.00041973,30]
[394497810,1763633445733,-150.0,0.00041973,30]
[394497811,1763633445744,-166.66048107,0.00041975,2]
[394497812,1763633445755,-166.66048106,0.00041975,2]
[394497813,1763633445765,-300.0,0.00041984,2]
[394497814,1763633445776,-300.0,0.00041984,2]
[394497815,1763633445786,-502.89115393,0.00041991,120]
[394497816,1763633445797,-289.28844386,0.00041991,120]
[394497817,1763633445808,-155.50767714,0.00041991,20]
[394497818,1763633445819,-500.0,0.00041995,120]
[394497819,1763633445829,-200.0,0.00041995,7]
[394497820,1763633445840,-445.1802467,0.00041995,120]
[394497822,1763633445850,-200.0,0.00041995,7]
[394497823,1763633445861,-193.08950974,0.00041995,24]
[394497824,1763633445871,-172.11962072,0.00041995,31]
[394497825,1763633445881,-454.22212715,0.00041996,120]
[394497826,1763633445892,-4827416.83410402,0.00041996,7]
[394497827,1763633446221,-0.14942334,0.00019963,2]
[394497828,1763633446235,-6493.85057666,0.00019963,2]
[394497829,1763633446246,-2128.00663108,0.00041996,7]
[394497830,1763633446259,-8947.21879473,0.00041996,7]
[394497831,1763633446270,-8943.78386462,0.00041996,7]
[394497832,1763633446283,-9077.54866152,0.00041996,7]
[394497833,1763633446296,-8943.84023489,0.00041996,7]
[394497834,1763633446361,-9914.37454517,0.00041996,7]
[394497835,1763633446415,-157.57064462,0.00017473,2]
[394497837,1763633446710,-185.53976765,0.000399,120]
[394497838,1763633446721,-217105.66332457,0.00041996,7]
[394497839,1763633465864,500.0,0.00041996,120]
[394497840,1763633466186,500.0,0.00041996,120]
[394497841,1763633466505,500.0,0.00041996,120]
[394497842,1763633466661,500.0,0.00041996,120]
[394497843,1763633466924,500.0,0.00041996,120]
[394497844,1763633467158,500.0,0.00041996,120]
[394497845,1763633467436,500.0,0.00041996,120]
[394497846,1763633467715,498.3976,0.00041996,120]
[394497882,1763633646028,425.4,0.00013699,2]
[394497884,1763633762147,200.0,0.00041996,30]
[394497888,1763633848435,443.32921114,0.00041996,120]
[394497889,1763633942225,-304.78467559,0.000164,2]
[394497890,1763633942247,-999.0,0.00016613,3]
[394497891,1763633942271,-200.0,0.00016779,2]
[394497892,1763633942297,-2072.98,0.00016806,2]
[394497893,1763633942320,-1000.0,0.00016887,2]
[394497894,1763633942345,-500.0,0.000169,6]
[394497895,1763633942368,-300.0,0.000169,6]
[394497896,1763633942390,-200.0,0.0001695,2]
[394497897,1763633942414,-208.55119145,0.0001695,2]
[394497899,1763634017704,-91.44880855,0.0001695,2]
[394497900,1763634017728,-208.55119145,0.00016975,2]
[394497901,1763634021865,-57.34105158,0.00016975,2]
[394497902,1763634021890,-200.0,0.00016975,2]
[394497903,1763634021911,-175.0,0.00017,2]
[394497904,1763634021932,-200.0,0.00017039,2]